fUST/lending_fUST_20251123
["ID","MTS","AMOUNT","RATE_DAILY","PERIOD"]
[394657214,1763827264204,300.0,7.056e-05,2]
[394657215,1763827286166,150.0,7.056e-05,2]
[394657216,1763827365162,300.0,7.056e-05,2]
[394657217,1763827387429,300.0,7.056e-05,2]
[394657218,1763827402872,300.0,7.056e-05,2]
[394657219,1763827410778,150.0,7.091e-05,2]
[394657220,1763827433156,150.0,7.091e-05,2]
[394657221,1763827455773,150.0,7.091e-05,2]
[394657222,1763827478273,150.0,7.091e-05,2]
[394657223,1763827502044,150.0,7.091e-05,2]
[394657224,1763827526079,150.0,7.091e-05,2]
[394657227,1763827718171,632.0,0.00021279,120]
[394657247,1763827832227,-300.0,7.175e-05,2]
[394657248,1763827832236,-575.89904586,7.175e-05,2]
[394657253,1763827832272,-624.10095414,7.175e-05,2]
[394657255,1763827832281,-1240.37540698,7.176e-05,2]
[394657270,1763827838329,-920.0098551,7.176e-05,2]
[394657271,1763827838341,-625.58105007,7.176e-05,2]
[394657273,1763827840465,-30592.90438003,7.176e-05,2]
[394657274,1763827840477,-5618.83711693,7.176e-05,2]
[394657275,1763827840663,-12654.86442917,7.176e-05,2]
[394657276,1763827840675,-671.77936835,7.176e-05,2]
[394657282,1763827845480,-1304.8286752,7.176e-05,2]
[394657283,1763827845492,-36984.22489589,7.176e-05,2]
[394657288,1763827846502,-709.52143901,7.176e-05,2]
[394657289,1763827846513,-1685.28112363,7.176e-05,2]
[394657290,1763827846681,-1808.6,7.176e-05,2]
[394657291,1763827846694,-9558.11202671,7.176e-05,2]
[394657295,1763827846763,-3040.92075901,7.176e-05,2]
[394657296,1763827903641,167.739,7.032e-05,2]
[394657297,1763828046673,150.0,7.033e-05,2]
[394657298,1763828470734,171.04,8e-05,3]
[394657299,1763828503659,167.739,7.032e-05,2]
[394657302,1763828655687,150.0,7.077e-05,2]
[394657303,1763828714223,999.8,0.00021279,120]
[394657305,1763828762404,9850.01,7.068e-05,2]
[394657306,1763828762432,10000.01,7.068e-05,2]
[394657307,1763828762464,10000.01,7.068e-05,2]
[394657308,1763828762493,10000.01,7.068e-05,2]
[394657309,1763828762520,10000.01,7.068e-05,2]
[394657310,1763828762548,10000.01,7.068e-05,2]
[394657311,1763828762575,10000.01,7.068e-05,2]
[394657312,1763828762602,10000.01,7.068e-05,2]
[394657313,1763828762627,10000.01,7.068e-05,2]
[394657314,1763828762656,800149.91,7.068e-05,2]
[394657315,1763828773432,1117.95167283,0.0001333,9]
[394657316,1763828788829,150.0,7.077e-05,2]
[394657317,1763828793171,-150.0,7.148e-05,2]
[394657318,1763828793196,-105.09103035,7.151e-05,2]
[394657320,1763828797335,1394.90896965,7.079e-05,2]
[394657321,1763828812492,1394.90896965,7.079e-05,2]
[394657322,1763828820405,1394.90896965,7.079e-05,2]
[394657323,1763828821651,483.04,1e-05,2]
[394657324,1763828821939,483.04,1e-05,2]
[394657325,1763828822245,483.04,1.1e-05,2]
[394657326,1763828823285,483.04,1.1e-05,2]
[394657327,1763828823651,483.04,1.1e-05,2]
[394657328,1763828824204,483.04,1.2e-05,2]
[394657329,1763828824309,483.04,1.2e-05,2]
[394657330,1763828824595,483.04,1.3e-05,2]
[394657331,1763828824927,483.04,1.3e-05,2]
[394657332,1763828825217,483.04,1.3e-05,2]
[394657333,1763828825828,483.04,1.4e-05,2]
[394657334,1763828826116,351.84309105,1.4e-05,2]
[394657335,1763828826141,131.19690895,1.4e-05,2]
[394657336,1763828826398,483.04,1.4e-05,2]
[394657337,1763828826736,483.04,1.5e-05,2]
[394657338,1763828827110,483.04,1.5e-05,2]
[394657339,1763828827492,483.04,1.5e-05,2]
[394657340,1763828827821,483.04,1.6e-05,2]
[394657341,1763828828071,483.04,1.6e-05,2]
[394657342,1763828828353,483.04,1.6e-05,2]
[394657343,1763828828627,483.04,1.7e-05,2]
[394657344,1763828828912,483.04,1.7e-05,2]
[394657345,1763828829205,483.04,1.8e-05,2]
[394657346,1763828829485,483.04,1.8e-05,2]
[394657347,1763828829821,483.04,1.8e-05,2]
[394657348,1763828830262,483.04,1.9e-05,2]
[394657349,1763828830581,483.04,1.9e-05,2]
[394657350,1763828831136,483.04,1.9e-05,2]
[394657351,1763828831448,483.04,2e-05,2]
[394657352,1763828831678,483.04,2e-05,2]
[394657353,1763828832010,483.04,2e-05,2]
[394657354,1763828832314,483.04,2.1e-05,2]
[394657355,1763828832607,483.04,2.1e-05,2]
[394657356,1763828832984,208.01309105,2.1e-05,2]
[394657357,1763828833010,275.02690895,2.1e-05,2]
[394657358,1763828833235,483.04,2.2e-05,2]
[394657359,1763828833531,483.04,2.2e-05,2]
[394657360,1763828833808,483.04,2.3e-05,2]
[394657361,1763828834157,483.04,2.3e-05,2]
[394657362,1763828834456,483.04,2.3e-05,2]
[394657363,1763828834895,483.04,2.4e-05,2]
[394657364,1763828835180,483.04,2.4e-05,2]
[394657365,1763828835519,483.04,2.4e-05,2]
[394657366,1763828835640,483.04,2.277e-05,2]
[394657367,1763828835821,483.04,2.5e-05,2]
[394657368,1763828836111,483.04,2.5e-05,2]
[394657369,1763828836512,483.04,2.5e-05,2]
[394657370,1763828836789,483.04,2.6e-05,2]
[394657371,1763828837097,483.04,2.6e-05,2]
[394657372,1763828837388,483.04,2.6e-05,2]
[394657373,1763828838741,483.04,2.7e-05,2]
[394657374,1763828839194,483.04,2.7e-05,2]
[394657375,1763828839305,483.04,2.8e-05,2]
[394657378,1763828843917,1030.26309105,7.079e-05,2]
[394657379,1763828843944,664.6458786,7.079e-05,2]
[394657381,1763828859802,1694.90896965,7.079e-05,2]
[394657382,1763828868301,1694.90896965,7.079e-05,2]
[394657383,1763828884065,300.0,7.079e-05,2]
[394657384,1763828891933,600.0,7.079e-05,2]
[394657385,1763828907071,600.0,7.079e-05,2]
[394657386,1763828915539,600.0,7.079e-05,2]
[394657387,1763828930731,600.0,7.079e-05,2]
[394657388,1763828933037,3245.5461821,7.068e-05,2]
[394657389,1763828933063,10000.01,7.068e-05,2]
[394657390,1763828933090,10000.01,7.068e-05,2]
[394657391,1763828933119,10000.01,7.068e-05,2]
[394657392,1763828933145,10000.01,7.068e-05,2]
[394657393,1763828933171,10000.01,7.068e-05,2]
[394657394,1763828933201,699155.45,7.068e-05,2]
[394657395,1763828933234,85219.90999791,7.068e-05,2]
[394657396,1763828966117,-187.51950809,6.926e-05,2]
[394657438,1763829032484,-112.48049191,6.926e-05,2]
[394657440,1763829032494,-300.0,6.996e-05,2]
[394657442,1763829032504,-300.0,6.996e-05,2]
[394657444,1763829032513,-1200.0,6.996e-05,2]
[394657446,1763829032523,-300.0,6.996e-05,2]
[394657448,1763829032532,-300.0,6.996e-05,2]
[394657449,1763829032541,-12620.3841214,6.997e-05,2]
[394657451,1763829032551,-3192.43921668,7.068e-05,2]
[394657501,1763829040582,-608.32082047,6.997e-05,2]
[394657618,1763829389699,-191.34643683,6.788e-05,2]
[394657619,1763829389727,-191.34643683,6.857e-05,2]
[394657620,1763829389758,-150.0,6.961e-05,2]
[394657621,1763829389784,-976.30789558,6.996e-05,2]
[394657622,1763829389813,-1200.0,6.996e-05,2]
[394657623,1763829389843,-300.0,7.063e-05,2]
[394657624,1763829389872,-300.0,7.064e-05,2]
[394657625,1763829389901,-300.0,7.064e-05,2]
[394657626,1763829389930,-1200.0,7.064e-05,2]
[394657627,1763829389958,-82.00846152,7.064e-05,2]
[394657628,1763829389998,-217.99153848,7.064e-05,2]
[394657629,1763829390029,-500.0,7.065e-05,2]
[394657630,1763829390059,-500.0,7.065e-05,2]
[394657631,1763829390094,-500.0,7.065e-05,2]
[394657632,1763829390138,-500.0,7.065e-05,2]
[394657633,1763829390172,-500.0,7.065e-05,2]
[394657634,1763829390207,-500.0,7.065e-05,2]
[394657635,1763829390235,-500.0,7.065e-05,2]
[394657636,1763829390271,-500.0,7.065e-05,2]
[394657637,1763829390301,-500.0,7.065e-05,2]
[394657638,1763829390335,-64.02692304,7.065e-05,2]
[394657639,1763829390406,-435.97307696,7.065e-05,2]
[394657640,1763829390436,-500.0,7.065e-05,2]
[394657641,1763829390469,-500.0,7.065e-05,2]
[394657642,1763829390497,-500.0,7.065e-05,2]
[394657643,1763829390526,-500.0,7.065e-05,2]
[394657644,1763829390559,-500.0,7.065e-05,2]
[394657645,1763829390589,-500.0,7.065e-05,2]
[394657646,1763829390623,-500.0,7.065e-05,2]
[394657647,1763829390651,-261.09763863,7.065e-05,2]
[394657648,1763829390683,-500.0,7.065e-05,2]
[394657649,1763829390710,-105.86856882,7.065e-05,2]
[394657650,1763829390839,-394.13143118,7.065e-05,2]
[394657651,1763829390872,-500.0,7.065e-05,2]
[394657652,1763829390906,-500.0,7.065e-05,2]
[394657653,1763829390938,-500.0,7.065e-05,2]
[394657654,1763829390968,-500.0,7.065e-05,2]
[394657655,1763829390999,-500.0,7.065e-05,2]
[394657656,1763829391034,-500.0,7.065e-05,2]
[394657657,1763829391069,-500.0,7.065e-05,2]
[394657658,1763829391097,-500.0,7.065e-05,2]
[394657659,1763829391128,-500.0,7.065e-05,2]
[394657660,1763829392362,-500.0,7.065e-05,2]
[394657661,1763829392395,-500.0,7.065e-05,2]
[394657662,1763829392445,-268.39408342,7.065e-05,2]
[394657663,1763829392482,-500.0,7.065e-05,2]
[394657664,1763829392514,-500.0,7.065e-05,2]
[394657665,1763829392545,-500.0,7.065e-05,2]
[394657666,1763829392582,-500.0,7.065e-05,2]
[394657667,1763829392619,-500.0,7.065e-05,2]
[394657668,1763829392655,-500.0,7.065e-05,2]
[394657669,1763829392690,-500.0,7.065e-05,2]
[394657670,1763829392761,-500.0,7.065e-05,2]
[394657671,1763829392795,-500.0,7.065e-05,2]
[394657672,1763829392830,-500.0,7.065e-05,2]
[394657673,1763829392865,-500.0,7.065e-05,2]
[394657674,1763829392900,-500.0,7.065e-05,2]
[394657675,1763829392942,-500.0,7.065e-05,2]
[394657676,1763829392983,-500.0,7.065e-05,2]
[394657677,1763829393028,-500.0,7.065e-05,2]
[394657678,1763829393065,-500.0,7.065e-05,2]
[394657679,1763829393104,-500.0,7.065e-05,2]
[394657680,1763829395348,-958.77520349,7.065e-05,2]
[394657681,1763829395390,-500.0,7.065e-05,2]
[394657682,1763829395435,-958.77520349,7.065e-05,2]
[394657683,1763829395478,-958.77520349,7.065e-05,2]
[394657684,1763829395516,-500.0,7.065e-05,2]
[394657685,1763829395558,-958.77520349,7.065e-05,2]
[394657686,1763829395809,-958.77520349,7.065e-05,2]
[394657687,1763829395848,-500.0,7.065e-05,2]
[394657688,1763829395893,-958.77520349,7.065e-05,2]
[394657689,1763829395938,-958.77520349,7.065e-05,2]
[394657690,1763829395977,-500.0,7.065e-05,2]
[394657691,1763829396019,-958.77520349,7.065e-05,2]
[394657692,1763829396116,-958.77520349,7.065e-05,2]
[394657693,1763829396415,-500.0,7.065e-05,2]
[394657694,1763829396455,-958.77520349,7.065e-05,2]
[394657695,1763829396489,-958.77520349,7.065e-05,2]
[394657696,1763829396519,-179.55925416,7.065e-05,2]
[394657697,1763829396554,-958.77520349,7.065e-05,2]
[394657698,1763829396589,-11.91466027,7.065e-05,2]
[394657699,1763829398330,-946.86054322,7.065e-05,2]
[394657700,1763829398368,-958.77520349,7.065e-05,2]
[394657701,1763829398411,-958.77520349,7.065e-05,2]
[394657702,1763829398447,-958.77520349,7.065e-05,2]
[394657703,1763829398482,-958.77520349,7.065e-05,2]
[394657704,1763829398587,-958.77520349,7.065e-05,2]
[394657705,1763829398623,-958.77520349,7.065e-05,2]
[394657706,1763829398658,-958.77520349,7.065e-05,2]
[394657707,1763829398693,-958.77520349,7.065e-05,2]
[394657708,1763829398729,-958.77520349,7.065e-05,2]
[394657709,1763829398815,-958.77520349,7.065e-05,2]
[394657710,1763829398854,-958.77520349,7.065e-05,2]
[394657711,1763829398891,-958.77520349,7.065e-05,2]
[394657712,1763829398930,-958.77520349,7.065e-05,2]
[394657713,1763829398969,-958.77520349,7.065e-05,2]
[394657714,1763829438752,2000.0,0.0002,30]
[394657716,1763829566945,150.0,7.06e-05,3]
[394657717,1763829570683,150.0,7.06e-05,3]
[394657718,1763829601709,153.09,1e-05,2]
[394657719,1763829602070,153.09,1.1e-05,2]
[394657720,1763829602385,153.09,1.2e-05,2]
[394657721,1763829602771,153.09,1.3e-05,2]
[394657722,1763829603094,153.09,1.4e-05,2]
[394657723,1763829603390,153.09,1.4e-05,2]
[394657724,1763829603706,153.09,1.5e-05,2]
[394657725,1763829604114,153.09,1.6e-05,2]
[394657726,1763829604395,153.09,1.7e-05,2]
[394657727,1763829605300,153.09,1.8e-05,2]
[394657728,1763829605654,153.09,1.9e-05,2]
[394657729,1763829605994,153.09,2e-05,2]
[394657730,1763829606256,153.09,2.1e-05,2]
[394657731,1763829606530,153.09,2.2e-05,2]
[394657732,1763829607164,153.09,2.3e-05,2]
[394657733,1763829709115,-1192.00111112,6.057e-05,2]
[394657734,1763829710647,-285.59235155,6.057e-05,2]
[394657735,1763829715221,-157.74738027,6.057e-05,2]
[394657736,1763829716921,-167.38291,6.057e-05,2]
[394657737,1763829719595,-200.00422976,6.057e-05,2]
[394657738,1763829723464,-300.0,5.996e-05,2]
[394657739,1763829727744,-300.0,5.996e-05,2]
[394657740,1763829855331,-157.74738027,5.877e-05,2]
[394657741,1763829855361,-150.0,5.907e-05,2]
[394657742,1763829855389,-157.74738027,5.936e-05,2]
[394657743,1763829855420,-694.96394053,5.996e-05,2]
[394657744,1763829855450,-878.89516426,6.057e-05,2]
[394657745,1763829855551,-5516.41978772,6.057e-05,2]
[394657746,1763829855634,-404.88248162,6.057e-05,2]
[394657747,1763829855664,-1200.0,7.042e-05,2]
[394657748,1763829855694,-300.0,7.042e-05,2]
[394657749,1763829855720,-433.38940533,7.043e-05,2]
[394657750,1763829855747,-486.17344647,7.043e-05,2]
[394657751,1763829855773,-500.0,7.043e-05,2]
[394657752,1763829855800,-500.0,7.043e-05,2]
[394657753,1763829855826,-500.0,7.043e-05,2]
[394657754,1763829855853,-500.0,7.043e-05,2]
[394657755,1763829855956,-386.62062406,7.043e-05,2]
[394657756,1763829855984,-275.08034466,7.043e-05,2]
[394657757,1763829856012,-500.0,7.043e-05,2]
[394657758,1763829856040,-501.46867833,7.043e-05,2]
[394657759,1763829856067,-500.0,7.043e-05,2]
[394657760,1763829856095,-390.92221377,7.043e-05,2]
[394657761,1763829856123,-500.0,7.043e-05,2]
[394657762,1763829856152,-300.0,7.062e-05,2]
[394657763,1763829856180,-300.0,7.063e-05,2]
[394657764,1763829856210,-1200.0,7.063e-05,2]
[394657765,1763829856569,-300.0,7.063e-05,2]
[394657766,1763829856578,-86.62062406,7.066e-05,2]
[394657767,1763829856593,-291.82627836,7.066e-05,2]
[394657768,1763829858203,-121.55309758,7.066e-05,2]
[394657769,1763829858237,-500.0,7.066e-05,2]
[394657770,1763829858269,-500.0,7.066e-05,2]
[394657771,1763829858298,-500.0,7.066e-05,2]
[394657772,1763829858504,-500.0,7.066e-05,2]
[394657773,1763829858538,-271.1840992,7.066e-05,2]
[394657774,1763829858574,-500.0,7.066e-05,2]
[394657775,1763829858610,-500.0,7.066e-05,2]
[394657776,1763829858642,-500.0,7.066e-05,2]
[394657777,1763829858673,-500.0,7.066e-05,2]
[394657778,1763829858706,-500.0,7.066e-05,2]
[394657779,1763829858984,-214.53560644,7.066e-05,2]
[394657780,1763829861175,-285.46439356,7.066e-05,2]
[394657781,1763829861212,-500.0,7.066e-05,2]
[394657782,1763829861245,-500.0,7.066e-05,2]
[394657783,1763829861277,-500.0,7.066e-05,2]
[394657784,1763829861310,-500.0,7.066e-05,2]
[394657785,1763829861341,-500.0,7.066e-05,2]
[394657786,1763829861373,-461.49538768,7.066e-05,2]
[394657787,1763829861403,-500.0,7.066e-05,2]
[394657788,1763829861435,-500.0,7.066e-05,2]
[394657789,1763829861468,-500.0,7.066e-05,2]
[394657790,1763829861499,-6.09043752,7.066e-05,2]
[394657791,1763829861605,-493.90956248,7.066e-05,2]
[394657792,1763829861637,-500.0,7.066e-05,2]
[394657793,1763829861672,-500.0,7.066e-05,2]
[394657794,1763829861711,-500.0,7.066e-05,2]
[394657795,1763829861745,-500.0,7.066e-05,2]
[394657796,1763829861781,-500.0,7.066e-05,2]
[394657797,1763829861814,-500.0,7.066e-05,2]
[394657798,1763829861846,-500.0,7.066e-05,2]
[394657799,1763829861879,-500.0,7.066e-05,2]
[394657800,1763829861912,-500.0,7.066e-05,2]
[394657801,1763829862020,-500.0,7.066e-05,2]
[394657802,1763829862054,-500.0,7.066e-05,2]
[394657803,1763829862089,-500.0,7.066e-05,2]
[394657804,1763829862122,-500.0,7.066e-05,2]
[394657805,1763829862155,-500.0,7.066e-05,2]
[394657806,1763829862189,-500.0,7.066e-05,2]
[394657807,1763829862227,-500.0,7.066e-05,2]
[394657808,1763829862261,-500.0,7.066e-05,2]
[394657809,1763829862293,-500.0,7.066e-05,2]
[394657810,1763829862324,-500.0,7.066e-05,2]
[394657811,1763829863063,-12.19087504,7.066e-05,2]
[394657812,1763829863078,-487.80912496,7.066e-05,2]
[394657813,1763829863087,-12.19087504,7.066e-05,2]
[394657814,1763829863102,-0.01,7.066e-05,2]
[394657815,1763829901901,153.02,1e-05,2]
[394657816,1763829902207,153.02,1e-05,2]
[394657817,1763829902620,153.02,1.1e-05,2]
[394657818,1763829902907,153.02,1.1e-05,2]
[394657819,1763829903232,153.02,1.1e-05,2]
[394657820,1763829903539,153.02,1.2e-05,2]
[394657821,1763829903839,153.02,1.2e-05,2]
[394657822,1763829904120,153.02,1.3e-05,2]
[394657823,1763829904406,153.02,1.3e-05,2]
[394657824,1763829904766,153.02,1.3e-05,2]
[394657825,1763829905167,153.02,1.4e-05,2]
[394657826,1763829905457,153.02,1.4e-05,2]
[394657827,1763829905780,153.02,1.4e-05,2]
[394657828,1763829906078,153.02,1.5e-05,2]
[394657829,1763829907012,153.02,1.5e-05,2]
[394657830,1763829907335,153.02,1.6e-05,2]
[394657831,1763829907830,153.02,1.6e-05,2]
[394657832,1763829907924,153.02,1.6e-05,2]
[394657833,1763829908255,153.02,1.7e-05,2]
[394657834,1763829908540,153.02,1.7e-05,2]
[394657835,1763829908866,153.02,1.7e-05,2]
[394657836,1763829909164,153.02,1.8e-05,2]
[394657837,1763829909441,153.02,1.8e-05,2]
[394657838,1763829909763,153.02,1.8e-05,2]
[394657839,1763829910102,153.02,1.9e-05,2]
[394657840,1763829910371,153.02,1.9e-05,2]
[394657841,1763829910661,153.02,2e-05,2]
[394657842,1763829911004,153.02,2e-05,2]
[394657843,1763829911312,153.02,2e-05,2]
[394657844,1763829911625,153.02,2.1e-05,2]
[394657845,1763829911925,153.02,2.1e-05,2]
[394657846,1763829912211,153.02,2.1e-05,2]
[394657847,1763829912571,153.02,2.2e-05,2]
[394657848,1763829912945,153.02,2.2e-05,2]
[394657849,1763829913915,153.02,2.3e-05,2]
[394657887,1763830134530,159.0,5.8e-07,2]
[394657888,1763830135474,159.0,5.8e-07,2]
[394657889,1763830136538,159.0,5.8e-07,2]
[394657890,1763830137637,159.0,5.8e-07,2]
[394657891,1763830138660,159.0,5.8e-07,2]
[394657892,1763830139709,159.0,5.8e-07,2]
[394658129,1763830237819,-600.0,6.718e-05,2]
[394658130,1763830237829,-150.0,6.752e-05,2]
[394658131,1763830237839,-600.0,6.786e-05,2]
[394658132,1763830237851,-600.0,6.855e-05,2]
[394658133,1763830237862,-1200.0,6.942e-05,2]
[394658134,1763830237871,-300.0,6.942e-05,2]
[394658135,1763830237882,-300.0,6.942e-05,2]
[394658136,1763830237892,-300.0,6.942e-05,2]
[394658137,1763830237903,-1200.0,6.942e-05,2]
[394658138,1763830237914,-300.0,6.942e-05,2]
[394658139,1763830237924,-516.34683712,6.943e-05,2]
[394658140,1763830237934,-500.0,6.943e-05,2]
[394658141,1763830237944,-500.0,6.943e-05,2]
[394658142,1763830237954,-500.0,6.943e-05,2]
[394658143,1763830237963,-500.0,6.943e-05,2]
[394658144,1763830237972,-500.0,6.943e-05,2]
[394658145,1763830237981,-500.0,6.943e-05,2]
[394658146,1763830237990,-563.20537494,6.943e-05,2]
[394658147,1763830237999,-500.0,6.943e-05,2]
[394658148,1763830238009,-500.0,6.943e-05,2]
[394658149,1763830238018,-526.07532921,6.943e-05,2]
[394658150,1763830238027,-500.0,6.966e-05,2]
[394658151,1763830238037,-500.0,6.966e-05,2]
[394658152,1763830238047,-500.0,6.966e-05,2]
[394658153,1763830238057,-500.0,6.966e-05,2]
[394658154,1763830238066,-500.0,6.966e-05,2]
[394658155,1763830238075,-500.0,6.966e-05,2]
[394658156,1763830238085,-500.0,6.966e-05,2]
[394658157,1763830238094,-500.0,6.966e-05,2]
[394658158,1763830238104,-500.0,6.966e-05,2]
[394658159,1763830238113,-500.0,6.966e-05,2]
[394658160,1763830238123,-500.0,6.966e-05,2]
[394658161,1763830238132,-300.0,6.966e-05,2]
[394658162,1763830238142,-500.0,6.966e-05,2]
[394658163,1763830238151,-500.0,6.966e-05,2]
[394658164,1763830238161,-500.0,6.966e-05,2]
[394658165,1763830238170,-500.0,6.966e-05,2]
[394658166,1763830238180,-500.0,6.966e-05,2]
[394658167,1763830238190,-500.0,6.966e-05,2]
[394658168,1763830238199,-500.0,6.966e-05,2]
[394658169,1763830238209,-358.59407697,6.966e-05,2]
[394658170,1763830238219,-500.0,6.966e-05,2]
[394658171,1763830238229,-500.0,6.966e-05,2]
[394658172,1763830238239,-500.0,6.966e-05,2]
[394658173,1763830238248,-500.0,6.966e-05,2]
[394658174,1763830238257,-500.0,6.966e-05,2]
[394658175,1763830238267,-500.0,6.966e-05,2]
[394658176,1763830238276,-500.0,6.966e-05,2]
[394658177,1763830238286,-500.0,6.966e-05,2]
[394658178,1763830238296,-500.0,6.966e-05,2]
[394658179,1763830238306,-500.0,6.966e-05,2]
[394658180,1763830238315,-500.0,6.966e-05,2]
[394658181,1763830238325,-500.0,6.966e-05,2]
[394658182,1763830238334,-500.0,6.966e-05,2]
[394658183,1763830238344,-500.0,6.966e-05,2]
[394658184,1763830238354,-500.0,6.966e-05,2]
[394658185,1763830238365,-500.0,6.966e-05,2]
[394658186,1763830238375,-500.0,6.966e-05,2]
[394658187,1763830238384,-72946.55823266,6.967e-05,2]
[394658188,1763830238400,-817053.44176734,6.967e-05,2]
[394658189,1763830238410,-986.07771536,6.994e-05,2]
[394658190,1763830238419,-500.0,7.24e-05,2]
[394658191,1763830238429,-1000.0,7.491e-05,2]
[394658192,1763830238439,-1000.0,7.491e-05,2]
[394658193,1763830238450,-1000.0,7.491e-05,2]
[394658194,1763830238460,-511.17422347,7.491e-05,2]
[394658195,1763830238470,-1000.0,7.491e-05,2]
[394658196,1763830238480,-519.55158055,7.491e-05,2]
[394658197,1763830238489,-500.0,7.514e-05,2]
[394658198,1763830238499,-1680.0,7.636e-05,2]
[394658199,1763830238510,-331.0,7.636e-05,2]
[394658200,1763830238520,-1680.0,7.636e-05,2]
[394658201,1763830238529,-420.0,7.636e-05,2]
[394658202,1763830238539,-500.0,7.788e-05,2]
[394658203,1763830238548,-1114.4645296,8.038e-05,2]
[394658204,1763830238558,-1500.0,8.038e-05,2]
[394658205,1763830238568,-1500.0,8.038e-05,2]
[394658206,1763830238578,-336.81328033,8.047e-05,2]
[394658207,1763830238588,-500.0,8.062e-05,2]
[394658208,1763830238598,-290.94494564,8.128e-05,2]
[394658209,1763830238608,-500.0,8.336e-05,2]
[394658210,1763830238621,-1180.0,8.399e-05,2]
[394658211,1763830238631,-750.0,8.399e-05,2]
[394658212,1763830238640,-587.0,8.399e-05,2]
[394658213,1763830238650,-2000.0,8.586e-05,2]
[394658214,1763830238661,-2000.0,8.586e-05,2]
[394658215,1763830238671,-500.0,8.61e-05,2]
[394658216,1763830238680,-500.0,8.685e-05,2]
[394658217,1763830238691,-386.49831439,8.685e-05,2]
[394658218,1763830238700,-500.0,8.685e-05,2]
[394658219,1763830238711,-500.0,8.685e-05,2]
[394658220,1763830238721,-500.0,8.685e-05,2]
[394658221,1763830238731,-231.01999514,8.685e-05,2]
[394658222,1763830238742,-500.0,8.685e-05,2]
[394658223,1763830238751,-500.0,8.685e-05,2]
[394658224,1763830238762,-500.0,8.685e-05,2]
[394658225,1763830238773,-500.0,8.685e-05,2]
[394658226,1763830238783,-177.0,8.752e-05,2]
[394658227,1763830238793,-500.0,8.884e-05,2]
[394658228,1763830238802,-690.19143308,9.134e-05,2]
[394658229,1763830238812,-2500.0,9.134e-05,2]
[394658230,1763830238822,-184.10016293,9.158e-05,2]
[394658231,1763830238832,-823.0,9.239e-05,2]
[394658232,1763830238842,-336.81328033,9.506e-05,2]
[394658233,1763830238852,-300.0,0.00010163,2]
[394658234,1763830238861,-414.0,0.00010675,2]
[394658235,1763830238871,-204.0,0.00010752,2]
[394658236,1763830238880,-500.0,0.00010959,2]
[394658237,1763830238890,-500.0,0.00010959,2]
[394658238,1763830238899,-500.0,0.00010959,2]
[394658239,1763830238908,-500.0,0.00010959,2]
[394658240,1763830238918,-500.0,0.00010959,2]
[394658241,1763830238927,-556.46231929,0.00010959,2]
[394658242,1763830239116,-500.0,0.00010959,2]
[394658243,1763830239128,-336.81328033,0.00010966,2]
[394658244,1763830239138,-151.0,0.00011,2]
[394658245,1763830239148,-151.0,0.00011,2]
[394658246,1763830239157,-151.0,0.000122,2]
[394658247,1763830239167,-151.0,0.000123,2]
[394658248,1763830239177,-1449.04,0.00012329,2]
[394658249,1763830239186,-1466.72,0.00012329,2]
[394658250,1763830239195,-1222.26,0.00012329,2]
[394658251,1763830239204,-1018.55,0.00012329,2]
[394658252,1763830239214,-848.79,0.00012329,2]
[394658253,1763830239224,-707.33,0.00012329,2]
[394658254,1763830239233,-589.44,0.00012329,2]
[394658255,1763830239242,-491.2,0.00012329,2]
[394658256,1763830239252,-409.33,0.00012329,2]
[394658257,1763830239262,-341.11,0.00012329,2]
[394658258,1763830239275,-284.26,0.00012329,2]
[394658259,1763830239284,-236.88,0.00012329,2]